Workbook

Sheet Sayfa1
A11: EĞİK ATIŞ
A24: g | B24: 9.81 | C24: m/s2
A25: V0 | B25: 140 | C25: m/s
A26: q | B26: 45 | C26: =+B26*PI()/180 -> 0.7853981634
A28: V0x | B28: =+B25*COS(C26) -> 98.99494937 | C28: m/s | D28: x0 | E28: 0
A29: V0y | B29: =+B25*SIN(C26) -> 98.99494937 | C29: m/s | D29: y0 | E29: 0
F31: Ölçek | G31: 2
A32: t (s) | B32: Vx (m/s) | C32: Vy (m/s) | D32: x (m) | E32: y (m)
A33: 11 | B33: =+$B$28 -> 98.99494937 | C33: =+$B$29-$B$24*A33 -> -8.915050634 | D33: =+$E$28+$B$28*A33 -> 1088.944443 | E33: =+$E$29+$B$29*A33-$B$24*A33^2/2 -> 495.439443
D34: =+D33+B33*G31 -> 1286.934342 | E34: =+E33+C33*G31 -> 477.6093418
A38: t (s) | B38: Vx (m/s) | C38: Vy (m/s) | D38: x (m) | E38: y (m)
A39: 0 | B39: =+$B$28 -> 98.99494937 | C39: =+$B$29-$B$24*A39 -> 98.99494937 | D39: =+$E$28+$B$28*A39 -> 0 | E39: =+$E$29+$B$29*A39-$B$24*A39^2/2 -> 0
A40: 1 | B40: =+$B$28 -> 98.99494937 | C40: =+$B$29-$B$24*A40 -> 89.18494937 | D40: =+$E$28+$B$28*A40 -> 98.99494937 | E40: =+$E$29+$B$29*A40-$B$24*A40^2/2 -> 94.08994937
A41: 2 | B41: 98.99494937 | C41: 79.37494937 | D41: 197.9898987 | E41: 178.3698987
A42: 3 | B42: 98.99494937 | C42: 69.56494937 | D42: 296.9848481 | E42: 252.8398481
A43: 4 | B43: 98.99494937 | C43: 59.75494937 | D43: 395.9797975 | E43: 317.4997975
A44: 5 | B44: 98.99494937 | C44: 49.94494937 | D44: 494.9747468 | E44: 372.3497468
A45: 6 | B45: 98.99494937 | C45: 40.13494937 | D45: 593.9696962 | E45: 417.3896962
A46: 7 | B46: 98.99494937 | C46: 30.32494937 | D46: 692.9646456 | E46: 452.6196456
A47: 8 | B47: 98.99494937 | C47: 20.51494937 | D47: 791.9595949 | E47: 478.0395949
A48: 9 | B48: 98.99494937 | C48: 10.70494937 | D48: 890.9545443 | E48: 493.6495443
A49: 10 | B49: 98.99494937 | C49: 0.8949493661 | D49: 989.9494937 | E49: 499.4494937
A50: 11 | B50: 98.99494937 | C50: -8.915050634 | D50: 1088.944443 | E50: 495.439443
A51: 12 | B51: 98.99494937 | C51: -18.72505063 | D51: 1187.939392 | E51: 481.6193924
A52: 13 | B52: 98.99494937 | C52: -28.53505063 | D52: 1286.934342 | E52: 457.9893418
A53: 14 | B53: 98.99494937 | C53: -38.34505063 | D53: 1385.929291 | E53: 424.5492911
A54: 15 | B54: 98.99494937 | C54: -48.15505063 | D54: 1484.92424 | E54: 381.2992405
A55: 16 | B55: 98.99494937 | C55: -57.96505063 | D55: 1583.91919 | E55: 328.2391899
A56: 17 | B56: 98.99494937 | C56: -67.77505063 | D56: 1682.914139 | E56: 265.3691392
A57: 18 | B57: 98.99494937 | C57: -77.58505063 | D57: 1781.909089 | E57: 192.6890886
A58: 19 | B58: 98.99494937 | C58: -87.39505063 | D58: 1880.904038 | E58: 110.199038
A59: 20 | B59: 98.99494937 | C59: -97.20505063 | D59: 1979.898987 | E59: 17.89898732
